bitfinex/quotes_BTCUSD_20250526
["timestamp","ask_amount","ask_price","bid_price","bid_amount"]
[1748218885043,0.88523706,108790.0,108780.0,0.12314416]
[1748218885044,0.0416,108790.0,108780.0,0.12314416]
[1748218885251,0.18844,108790.0,108780.0,0.13233643]
[1748218885453,0.19763142,108790.0,108780.0,0.13233643]
[1748218885883,0.0599831,108790.0,108780.0,0.13233643]
[1748218886084,0.05508934,108790.0,108780.0,0.13233643]
[1748218886215,0.05508934,108790.0,108780.0,0.1031205]
[1748218886395,0.06428102,108790.0,108780.0,0.1031205]
[1748218886714,0.07404014,108790.0,108780.0,0.1031205]
[1748218886921,0.07504014,108790.0,108780.0,0.1031205]
[1748218887201,0.06528102,108790.0,108780.0,0.1031205]
[1748218887864,0.06528093,108790.0,108780.0,0.1031205]
[1748218888734,0.05608934,108790.0,108780.0,0.1031205]
[1748218889175,0.06528102,108790.0,108780.0,0.1031205]
[1748218889472,0.05608934,108790.0,108780.0,0.1031205]
[1748218889895,0.06528085,108790.0,108780.0,0.1031205]
[1748218890104,0.90669872,108790.0,108780.0,0.002]
[1748218890254,0.9044008,108790.0,108780.0,0.002]
[1748218890889,0.9024008,108790.0,108780.0,0.002]
[1748218891095,0.9054008,108790.0,108780.0,0.003]
[1748218891297,0.972533,108790.0,108780.0,0.003]
[1748218891700,0.971533,108790.0,108780.0,0.003]
[1748218892096,0.973533,108790.0,108780.0,0.003]
[1748218892486,0.973533,108790.0,108780.0,0.08573579]
[1748218892693,0.96434141,108790.0,108780.0,0.003]
[1748218893257,0.89088289,108790.0,108780.0,0.07654293]
[1748218893457,0.89088289,108790.0,108780.0,0.08573562]
[1748218894639,0.71623355,108790.0,108780.0,0.10412075]
[1748218894852,0.91845775,108790.0,108780.0,0.09492823]
[1748218895264,0.91845766,108790.0,108780.0,0.10412058]
[1748218895500,0.73461716,108790.0,108780.0,0.11331285]
[1748218895707,0.74380909,108790.0,108780.0,0.11331285]
[1748218895834,0.55101062,108790.0,108780.0,0.11331285]
[1748218896058,0.0466,108790.0,108780.0,0.11331285]
[1748218896260,0.0258,108790.0,108780.0,0.20285841]
[1748218896457,0.005,108790.0,108780.0,0.73223841]
[1748218897318,0.005,108790.0,108780.0,0.54285841]
[1748218897516,0.002,108790.0,108780.0,0.84801841]
[1748218897716,0.003,108790.0,108780.0,0.84801841]
[1748218897930,0.001,108790.0,108780.0,0.45231285]
[1748218898079,0.0412,108790.0,108780.0,0.61159285]
[1748218901206,0.0216,108790.0,108780.0,0.61159285]
[1748218901410,0.001,108790.0,108780.0,0.70113841]
[1748218904996,0.001,108790.0,108780.0,0.84797841]
[1748218905204,0.0426,108790.0,108780.0,0.5965339]
[1748218905497,0.0426,108790.0,108780.0,0.48759345]
[1748218905934,0.0426,108790.0,108780.0,0.50597841]
[1748218907232,0.0426,108790.0,108780.0,0.84597841]
[1748218908006,0.0426,108790.0,108780.0,0.60959285]
[1748218916316,0.001,108790.0,108780.0,0.69913841]
[1748218917148,0.0214,108790.0,108780.0,0.69913841]
[1748218918848,0.0415,108790.0,108780.0,0.69913841]
[1748218919928,0.53607286,108790.0,108780.0,0.11031285]
[1748218920045,0.0415,108790.0,108780.0,0.11031285]
[1748218920267,0.0415,108790.0,108780.0,0.11261082]
[1748218922550,0.05069126,108790.0,108780.0,0.11261082]
[1748218922777,0.041,108780.0,108770.0,0.25101505]
[1748218922983,0.041,108780.0,108770.0,0.26940221]
[1748218924110,0.041,108780.0,108770.0,0.27040221]
[1748218924270,0.042,108780.0,108770.0,0.27140221]
[1748218926873,0.042,108780.0,108770.0,0.11232221]
[1748218930532,0.042,108780.0,108770.0,0.13987721]
[1748218930681,0.05160068,108780.0,108770.0,0.13987721]
[1748218932235,0.042,108780.0,108770.0,0.13987721]
[1748218932571,0.042,108780.0,108770.0,0.47987721]
[1748218933019,0.042,108780.0,108770.0,0.56942277]
[1748218933226,0.001,108780.0,108770.0,0.56942277]
[1748218933435,0.001,108780.0,108770.0,0.60092277]
[1748218934448,0.001,108780.0,108770.0,0.61546362]
[1748218936142,0.001,108780.0,108770.0,0.64467955]
[1748218938859,0.001,108780.0,108770.0,0.65447009]
[1748218943156,0.001,108780.0,108770.0,0.80131009]
[1748218943363,0.001,108780.0,108770.0,0.78881009]
[1748218943528,0.001,108780.0,108770.0,0.76981009]
[1748218943728,0.001,108780.0,108770.0,0.61317955]
[1748218943974,0.0206,108780.0,108770.0,0.76001955]
[1748218944361,0.0206,108780.0,108770.0,0.61317955]
[1748218944557,0.0206,108780.0,108770.0,0.76001955]
[1748218945031,0.0426,108780.0,108770.0,0.7454787]
[1748218945212,0.0426,108780.0,108770.0,0.71626277]
[1748218946342,0.0206,108780.0,108770.0,0.71626277]
[1748218946533,0.001,108780.0,108770.0,0.71626277]
[1748218950421,0.0216,108780.0,108770.0,0.71626277]
[1748218957371,0.0216,108780.0,108770.0,0.87506277]
[1748218958591,0.0413,108780.0,108770.0,0.87506277]
[1748218960683,0.0413,108780.0,108770.0,0.9042787]
[1748218963770,0.0413,108780.0,108770.0,0.7574387]
[1748218963944,0.0413,108780.0,108770.0,0.9042787]
[1748218966503,0.0413,108780.0,108770.0,0.7574387]
[1748218966882,0.0413,108780.0,108770.0,0.9042787]
[1748218969586,0.0413,108780.0,108770.0,0.87506277]
[1748218972032,0.0413,108780.0,108770.0,0.56942277]
[1748218972246,0.0413,108780.0,108770.0,0.72826277]
[1748218976438,0.0413,108780.0,108770.0,0.56942277]
[1748218976592,0.0413,108780.0,108770.0,0.87510277]
[1748218983127,0.0216,108780.0,108770.0,0.87510277]
[1748218983338,0.0216,108780.0,108770.0,0.88964362]
[1748218985735,0.0425,108780.0,108770.0,0.88964362]
[1748218989862,0.0425,108780.0,108770.0,0.72826277]
[1748218990072,0.0425,108780.0,108770.0,0.87482277]
[1748218995418,0.0425,108780.0,108770.0,0.56942277]
[1748218995609,0.0425,108780.0,108770.0,0.87482277]
[1748218996558,0.001,108780.0,108770.0,0.87482277]
[1748218996783,0.001,108780.0,108770.0,0.91416362]
[1748218997256,0.001,108780.0,108770.0,0.90516362]
[1748218997475,0.001,108780.0,108770.0,0.88936362]
[1748218999193,0.0212,108780.0,108770.0,0.88936362]
[1748219000902,0.0212,108780.0,108770.0,0.9185355]
[1748219003980,0.001,108780.0,108770.0,0.9185355]
[1748219004156,0.001,108780.0,108770.0,0.9343355]
[1748219004963,0.001,108780.0,108770.0,0.9333355]
[1748219005166,0.0406,108790.0,108780.0,0.08773476]
[1748219005367,0.0406,108790.0,108780.0,0.17728032]
[1748219005869,0.0406,108790.0,108780.0,0.20482832]
[1748219007161,0.0406,108790.0,108780.0,0.51122832]
[1748219007366,0.0406,108790.0,108780.0,0.20582832]
[1748219007580,0.0416,108790.0,108780.0,0.36538832]
[1748219007766,0.0416,108790.0,108780.0,0.51928032]
[1748219007967,0.12424986,108790.0,108780.0,0.67284032]
[1748219008188,0.60963138,108790.0,108780.0,0.81968032]
[1748219008435,0.60963138,108790.0,108780.0,0.51428032]
[1748219008624,0.11505852,108790.0,108780.0,0.51428032]
[1748219008958,0.11505852,108790.0,108780.0,0.67284032]
[1748219009383,0.11505852,108790.0,108780.0,0.58329476]
[1748219014213,0.0416,108790.0,108780.0,0.58329476]
[1748219015431,0.53617286,108790.0,108780.0,0.58329476]
[1748219015667,0.0416,108790.0,108780.0,0.58329476]
[1748219024548,0.0416,108790.0,108780.0,0.15856]
[1748219024759,0.0416,108790.0,108780.0,0.21371719]
[1748219025090,0.0416,108790.0,108780.0,0.24129476]
[1748219029990,0.0416,108790.0,108780.0,0.08273476]
[1748219030804,0.53617286,108790.0,108780.0,0.08273476]
[1748219031013,0.5047642,108790.0,108780.0,0.08273467]
[1748219031236,0.50476428,108790.0,108780.0,0.08273467]
[1748219031434,0.54316428,108790.0,108780.0,0.08273467]
[1748219033874,0.5431642,108790.0,108780.0,0.08273467]
[1748219035019,0.53397286,108790.0,108780.0,0.08273467]
[1748219035597,0.54316412,108790.0,108780.0,0.08273467]
[1748219035824,0.53397286,108790.0,108780.0,0.08273467]
[1748219037110,0.54316412,108790.0,108780.0,0.08273467]
[1748219037335,0.54316412,108790.0,108780.0,0.05515719]
[1748219037336,0.72700454,108790.0,108780.0,0.05515719]
[1748219037490,0.55235613,108790.0,108780.0,0.08273484]
[1748219037695,0.55235613,108790.0,108780.0,0.08273493]
[1748219037851,0.56154806,108790.0,108780.0,0.09192728]
[1748219038052,0.74538848,108790.0,108780.0,0.09192728]
[1748219038259,0.53397286,108790.0,108780.0,0.10111955]
[1748219038882,0.53497286,108790.0,108780.0,0.10111955]
[1748219039337,0.54416428,108790.0,108780.0,0.10111955]
[1748219039778,0.54316428,108790.0,108780.0,0.10111955]
[1748219039941,0.54416428,108790.0,108780.0,0.10211955]
[1748219041891,0.69104428,108790.0,108780.0,0.10211955]
[1748219042149,0.18728,108790.0,108780.0,0.10211955]
[1748219042351,0.69104428,108790.0,108780.0,0.10211955]
[1748219045674,0.68185286,108790.0,108780.0,0.10211955]
[1748219045873,0.69104428,108790.0,108780.0,0.10211955]
[1748219046279,0.68185286,108790.0,108780.0,0.10211955]
[1748219046462,0.6910442,108790.0,108780.0,0.10211955]
[1748219046868,0.68185286,108790.0,108780.0,0.10211955]
[1748219047221,0.53497286,108790.0,108780.0,0.10211955]
[1748219047422,0.68185286,108790.0,108780.0,0.10211955]
[1748219047625,0.53497286,108790.0,108780.0,0.10211955]
[1748219047826,0.68185286,108790.0,108780.0,0.10211955]
[1748219051577,0.69104412,108790.0,108780.0,0.10211955]
[1748219051774,0.68185286,108790.0,108780.0,0.10211955]
[1748219052651,0.69104428,108790.0,108780.0,0.10211955]
[1748219052981,0.70023562,108790.0,108780.0,0.10211955]
[1748219054442,0.70942721,108790.0,108780.0,0.10211955]
[1748219055670,0.67102721,108790.0,108760.0,0.8179308]
[1748219055877,0.037,108780.0,108770.0,0.10793204]
[1748219056605,0.037,108780.0,108770.0,0.44793204]
[1748219056762,0.04652667,108780.0,108770.0,0.44793204]
[1748219056987,0.04752667,108780.0,108770.0,0.44893204]
[1748219057190,0.038,108780.0,108770.0,0.44893204]
[1748219057924,0.59492057,108780.0,108770.0,0.44893204]
[1748219058650,0.59492057,108780.0,108770.0,0.44993204]
[1748219059787,0.59492057,108780.0,108770.0,0.50508968]
[1748219061799,0.60445007,108780.0,108770.0,0.50508968]
[1748219065472,0.59492057,108780.0,108770.0,0.50508968]
[1748219065892,0.001,108780.0,108770.0,0.50508968]
[1748219066910,0.0196,108780.0,108770.0,0.50508968]
[1748219069048,0.57652057,108780.0,108770.0,0.50508968]
[1748219069249,0.59512057,108780.0,108770.0,0.50508968]
[1748219069669,0.59512057,108780.0,108770.0,0.41554412]
[1748219075602,0.60431267,108780.0,108770.0,0.41554412]
[1748219075803,0.59512057,108780.0,108770.0,0.41554412]
[1748219084075,0.74200057,108780.0,108770.0,0.41554412]
[1748219090381,0.59512057,108780.0,108770.0,0.41554412]
[1748219097705,0.0382,108780.0,108770.0,0.41554412]
[1748219097930,0.59741849,108780.0,108770.0,0.41554412]
[1748219098217,0.59512057,108780.0,108770.0,0.41554412]
[1748219102952,0.59512057,108780.0,108770.0,0.05715764]
[1748219104117,0.59512057,108780.0,108770.0,0.07554412]
[1748219105386,0.74200057,108780.0,108770.0,0.07554412]
[1748219106349,0.59512057,108780.0,108770.0,0.07554412]
[1748219110847,0.0382,108780.0,108770.0,0.07554412]
[1748219111075,0.59512057,108780.0,108770.0,0.07554412]
[1748219112125,0.0382,108780.0,108770.0,0.16738794]
[1748219112329,0.001,108780.0,108770.0,0.16738783]
[1748219112535,0.001,108780.0,108770.0,0.69890868]
[1748219112741,0.001,108780.0,108770.0,0.72416053]
[1748219112963,0.001,108780.0,108770.0,0.84231968]
[1748219113162,0.57812057,108780.0,108770.0,0.84231968]
[1748219113311,0.57812057,108780.0,108770.0,0.81476968]
[1748219113528,0.0408,108780.0,108770.0,0.80976968]
[1748219113743,0.59772057,108780.0,108770.0,0.80976968]
[1748219114255,0.0408,108780.0,108770.0,0.80976968]
[1748219114486,0.0408,108780.0,108770.0,0.83894156]
[1748219114706,0.0212,108780.0,108770.0,0.83894156]
[1748219114857,0.0408,108780.0,108770.0,0.83894156]
[1748219115059,0.0408,108780.0,108770.0,0.69206156]
[1748219116112,0.0408,108780.0,108770.0,0.66288968]
[1748219124225,0.59772057,108780.0,108770.0,0.66288968]
[1748219125626,0.0408,108780.0,108770.0,0.66288968]
[1748219126268,0.59772057,108780.0,108770.0,0.66288968]
[1748219131527,0.0408,108780.0,108770.0,0.66288968]
[1748219131768,0.0212,108780.0,108770.0,0.66288968]
[1748219132943,0.0212,108780.0,108770.0,0.69044168]
[1748219133118,0.57812057,108780.0,108770.0,0.69044168]
[1748219133323,1.15494114,108780.0,108770.0,0.41554412]
[1748219133528,1.34799056,108780.0,108770.0,0.05716226]
[1748219133749,1.32016577,108780.0,108770.0,0.08474236]
[1748219133955,1.32935846,108780.0,108770.0,0.08474236]
[1748219134159,1.32935846,108780.0,108770.0,0.07554925]
[1748219134362,1.32016577,108780.0,108770.0,0.08474236]
[1748219134561,1.32935846,108780.0,108770.0,0.08474236]
[1748219134864,1.32016577,108780.0,108770.0,0.08474236]
[1748219135485,1.32935812,108780.0,108770.0,0.08474236]
[1748219135690,1.32935795,108780.0,108770.0,0.08474236]
[1748219136305,1.34774325,108780.0,108770.0,0.08474245]
[1748219136561,1.32935795,108780.0,108770.0,0.09393556]
[1748219136712,1.3201656,108780.0,108770.0,0.09393556]
[1748219136869,1.31097333,108780.0,108770.0,0.09393556]
[1748219137518,1.16413333,108780.0,108770.0,0.09393556]
[1748219137724,1.31097333,108780.0,108770.0,0.09393556]
[1748219137926,1.31097324,108780.0,108770.0,0.09393556]
[1748219138329,1.30178114,108780.0,108770.0,0.09393556]
[1748219138698,1.31097324,108780.0,108770.0,0.09393556]
[1748219138934,1.30178114,108780.0,108770.0,0.09393556]
[1748219139801,1.30182114,108780.0,108770.0,0.09393556]
[1748219140204,1.31101324,108780.0,108770.0,0.09393556]
[1748219141434,1.16413324,108780.0,108770.0,0.09393556]
[1748219141572,1.30182114,108780.0,108770.0,0.09393556]
[1748219142476,1.16413324,108780.0,108770.0,0.09393556]
[1748219142697,1.30182114,108780.0,108770.0,0.09393556]
[1748219143596,1.15494114,108780.0,108770.0,0.09393556]
[1748219143808,1.30182114,108780.0,108770.0,0.09393556]
[1748219144194,0.0411,108780.0,108770.0,0.09393556]
[1748219144395,1.15723906,108780.0,108770.0,0.09393556]
[1748219144670,1.15494114,108780.0,108770.0,0.09393556]
[1748219146228,0.59802057,108780.0,108770.0,0.09393556]
[1748219154081,0.59802057,108780.0,108760.0,0.32542969]
[1748219154282,0.59871849,108770.0,108760.0,0.66542969]
[1748219154467,0.59642057,108770.0,108760.0,0.66542969]
[1748219155295,0.59642057,108770.0,108760.0,0.66642969]
[1748219155502,0.59642057,108770.0,108760.0,0.66547961]
[1748219155827,0.59742057,108770.0,108760.0,0.66647961]
[1748219156245,0.59742057,108770.0,108760.0,0.66847961]
[1748219156542,0.59742057,108770.0,108760.0,0.67767374]
[1748219156768,0.59742057,108770.0,108760.0,0.67567374]
[1748219157052,0.59742057,108770.0,108760.0,0.67767374]
[1748219157550,0.61137573,108770.0,108760.0,0.67767374]
[1748219158319,0.61137573,108770.0,108760.0,0.83535374]
[1748219160541,0.61137573,108770.0,108760.0,0.53079374]
[1748219160756,0.05445516,108770.0,108760.0,0.67767374]
[1748219160989,0.61137573,108770.0,108760.0,0.67767374]
[1748219161215,0.61137573,108770.0,108760.0,0.53079374]
[1748219161433,0.61137573,108770.0,108760.0,0.67767374]
[1748219163893,0.61137573,108770.0,108760.0,0.53079374]
[1748219164555,0.61037573,108770.0,108760.0,0.52979374]
[1748219164768,0.61037573,108770.0,108760.0,0.52779374]
[1748219164969,0.61137573,108770.0,108760.0,0.52879374]
[1748219165331,0.05445516,108770.0,108760.0,0.52879374]
[1748219165559,0.61137573,108770.0,108760.0,0.52879374]
[1748219166384,0.05445516,108770.0,108760.0,0.52879374]
[1748219166590,0.05675308,108770.0,108760.0,0.52879374]
[1748219167027,0.03785308,108770.0,108760.0,0.52879374]
[1748219167652,0.01725308,108770.0,108760.0,0.52879374]
[1748219167851,0.03705308,108770.0,108760.0,0.52879374]
[1748219168690,0.05725308,108770.0,108760.0,0.52879374]
[1748219169539,0.61417365,108770.0,108760.0,0.52879374]
[1748219169843,0.61187573,108770.0,108760.0,0.52879374]
[1748219173070,0.05495516,108770.0,108760.0,0.52879374]
[1748219173261,0.61417365,108770.0,108760.0,0.52879374]
[1748219173478,0.61187573,108770.0,108760.0,0.52879374]
[1748219177843,0.75875573,108770.0,108760.0,0.18879374]
[1748219179515,0.75875573,108770.0,108760.0,0.19798828]
[1748219179516,0.61187573,108770.0,108760.0,0.19798828]
[1748219179737,0.75875573,108770.0,108760.0,0.19798828]
[1748219179964,0.61187573,108770.0,108760.0,0.19798828]
[1748219180184,0.75875573,108770.0,108760.0,0.19798828]
[1748219180750,0.75775573,108770.0,108760.0,0.19698828]
[1748219180968,0.75875573,108770.0,108760.0,0.19698828]
[1748219181154,0.61187573,108770.0,108760.0,0.19698828]
[1748219181356,0.75875573,108770.0,108760.0,0.19698828]
[1748219181557,0.61187573,108770.0,108760.0,0.19698828]
[1748219181776,0.75875573,108770.0,108760.0,0.19698828]
[1748219182186,0.75975573,108770.0,108760.0,0.19698828]
[1748219182635,0.61287573,108770.0,108760.0,0.19698828]
[1748219183046,0.75975573,108770.0,108760.0,0.19698828]
[1748219184999,0.05595516,108770.0,108760.0,0.19698828]
[1748219185207,0.61517365,108770.0,108760.0,0.19698828]
[1748219185426,0.61287573,108770.0,108760.0,0.19698828]
[1748219185816,0.75975573,108770.0,108760.0,0.19698828]
[1748219186029,0.61287573,108770.0,108760.0,0.19698828]
[1748219187141,0.75975573,108770.0,108760.0,0.19698828]
[1748219191747,0.61287573,108770.0,108760.0,0.19698828]
[1748219191951,0.75975573,108770.0,108760.0,0.19698828]
[1748219195566,0.61287573,108770.0,108760.0,0.19698828]
[1748219195731,0.75975573,108770.0,108760.0,0.19698828]
[1748219210030,0.05595516,108770.0,108760.0,0.19698828]
[1748219210179,0.01595516,108770.0,108760.0,0.53698828]
[1748219210791,0.01825308,108770.0,108760.0,0.53698828]
[1748219211349,0.59297365,108770.0,108760.0,0.53698828]
[1748219211509,0.59067573,108770.0,108760.0,0.53698828]
[1748219215431,0.59067573,108770.0,108750.0,0.12971945]
[1748219215724,0.59067573,108770.0,108750.0,0.22170145]
[1748219215884,0.59067573,108770.0,108750.0,0.21940296]
[1748219216328,0.58967573,108770.0,108750.0,0.21940296]
[1748219216522,0.59067573,108770.0,108750.0,0.19109666]
[1748219216969,0.58967573,108770.0,108750.0,0.19109666]
[1748219217111,0.58967573,108770.0,108760.0,0.07354581]
[1748219217778,0.58967573,108770.0,108760.0,0.08274019]
[1748219218151,0.60947573,108770.0,108760.0,0.08274019]
[1748219218363,0.60847573,108770.0,108760.0,0.08274019]
[1748219218684,0.60947573,108770.0,108760.0,0.08274019]
[1748219223439,0.60947573,108770.0,108760.0,0.42274019]
[1748219223861,0.05255516,108770.0,108760.0,0.42274019]
[1748219224089,0.03605308,108770.0,108760.0,0.42274019]
[1748219224302,0.05315308,108770.0,108760.0,0.42274019]
[1748219226094,0.05315308,108770.0,108760.0,0.08274019]
[1748219226426,0.54820478,108770.0,108760.0,0.08274019]
[1748219226636,0.54590686,108770.0,108760.0,0.08274019]
[1748219226769,0.54590686,108770.0,108760.0,0.08192572]
[1748219227449,0.54590686,108770.0,108760.0,0.42192572]
[1748219232227,0.05085516,108770.0,108760.0,0.42192572]
[1748219232428,0.05315308,108770.0,108760.0,0.42192572]
[1748219241249,0.54820478,108770.0,108760.0,0.42192572]
[1748219241408,0.54590686,108770.0,108760.0,0.42192572]
[1748219243999,0.60787314,108770.0,108760.0,0.42192572]
[1748219244975,0.60787314,108770.0,108760.0,0.08192572]
[1748219245607,0.60787314,108770.0,108750.0,0.09381197]
[1748219245608,0.24627334,108760.0,108750.0,0.09381197]
[1748219245814,1.57834703,108760.0,108750.0,0.00013795]
[1748219246037,1.45523679,108760.0,108750.0,0.00013795]
[1748219246262,1.46977764,108760.0,108750.0,0.00013795]
[1748219246446,1.46977764,108760.0,108740.0,0.002]
[1748219246447,0.72336613,108750.0,108740.0,0.002]
[1748219246656,0.82210683,108750.0,108740.0,0.00209165]
[1748219246800,0.84664768,108750.0,108740.0,0.00157492]
[1748219247014,0.06239,108730.0,108720.0,0.13243756]
[1748219247224,0.20237268,108710.0,108700.0,0.03863287]
[1748219247425,0.20927507,108710.0,108700.0,0.07564664]
[1748219247652,0.71393646,108710.0,108700.0,0.09404505]
[1748219247863,0.91176296,108710.0,108700.0,0.08484593]
[1748219248067,0.98291172,108710.0,108700.0,0.00204985]
[1748219248268,0.2279921,108700.0,108690.0,0.0293101]
[1748219248469,0.81300052,108700.0,108690.0,0.0293101]
[1748219248695,0.22800995,108690.0,108680.0,0.08557602]
[1748219248918,0.55786344,108690.0,108680.0,0.10397773]
[1748219249415,0.23728444,108650.0,108640.0,0.002]
[1748219249798,0.22809879,108640.0,108630.0,0.00316832]
[1748219250022,1.21902451,108640.0,108630.0,0.00316832]
[1748219250232,0.56809879,108640.0,108630.0,0.00316832]
[1748219250437,0.23732155,108630.0,108620.0,0.002]
[1748219250647,0.90064669,108630.0,108620.0,0.002]
[1748219250856,0.009207,108610.0,108600.0,0.07566227]
[1748219251068,0.02071166,108610.0,108600.0,0.07566277]
[1748219251242,0.22184302,108610.0,108600.0,0.002]
[1748219251459,1.02783963,108610.0,108600.0,0.08417039]
[1748219251664,1.01863229,108610.0,108600.0,0.10258565]
[1748219251876,1.02783912,108610.0,108600.0,0.10258565]
[1748219252077,0.51185698,108610.0,108600.0,0.10258565]
[1748219252299,0.52206364,108610.0,108600.0,0.09407981]
[1748219252457,0.52206364,108610.0,108600.0,0.08487231]
[1748219252662,0.5220644,108610.0,108600.0,0.08487231]
[1748219252866,0.7046961,108610.0,108600.0,0.002]
[1748219253247,0.80808489,108610.0,108600.0,0.002]
[1748219253442,0.81808489,108610.0,108600.0,0.002]
[1748219253649,0.96504489,108610.0,108600.0,0.002]
[1748219253926,0.22886999,108600.0,108590.0,0.0084875]
[1748219254106,0.31841555,108600.0,108590.0,0.0084875]
[1748219254277,0.0276254,108590.0,108580.0,0.10409636]
[1748219254496,0.00229792,108590.0,108580.0,0.10409636]
[1748219254675,0.06106312,108610.0,108600.0,0.02762327]
[1748219254942,0.01484323,108610.0,108600.0,0.42287188]
[1748219255087,0.01384323,108610.0,108600.0,0.42287188]
[1748219255301,0.01841374,108610.0,108590.0,0.07367049]
[1748219255500,0.46573667,108600.0,108590.0,0.07417071]
[1748219255995,0.0410134,108610.0,108600.0,0.08287188]
[1748219256410,0.0502204,108610.0,108600.0,0.08287188]
[1748219256601,0.0512204,108610.0,108600.0,0.08287188]
[1748219256847,0.0617254,108610.0,108600.0,0.08287188]
[1748219257070,0.05251832,108610.0,108600.0,0.08287188]
[1748219257293,0.52346207,108610.0,108600.0,0.08287188]
[1748219257520,0.51195707,108610.0,108600.0,0.08287188]
[1748219257750,0.51495707,108610.0,108600.0,0.08287188]
[1748219258007,0.02762277,108600.0,108590.0,0.07417122]
[1748219258225,0.94080014,108600.0,108590.0,0.00050022]
[1748219258878,0.47506347,108600.0,108590.0,0.00050022]
[1748219259152,0.94080014,108600.0,108590.0,0.00050022]
[1748219259380,0.2919015,108600.0,108590.0,0.07417122]
[1748219259606,0.75763817,108600.0,108590.0,0.07417122]
[1748219260099,0.94180023,108600.0,108590.0,0.05575392]
[1748219260281,0.94280023,108600.0,108590.0,0.06496278]
[1748219260533,0.94280023,108600.0,108590.0,0.07417156]
[1748219260735,0.94280023,108600.0,108590.0,0.08338008]
[1748219260936,0.94280023,108600.0,108590.0,0.07417156]
[1748219261224,0.30210892,108600.0,108590.0,0.09258843]
[1748219261436,0.29290099,108600.0,108590.0,0.09258843]
[1748219261635,0.96121575,108600.0,108590.0,0.07417156]
[1748219261870,0.96121575,108600.0,108590.0,0.09258886]
[1748219262075,0.94280032,108600.0,108590.0,0.08338025]
[1748219262297,0.93359239,108600.0,108590.0,0.07417156]
[1748219262862,0.93359239,108600.0,108590.0,0.06496287]
[1748219263128,0.93359239,108600.0,108590.0,0.07417156]
[1748219263487,0.94280023,108600.0,108590.0,0.08338008]
[1748219263690,0.76784559,108600.0,108590.0,0.09180181]
[1748219263893,0.96121575,108600.0,108590.0,0.08259346]
[1748219264445,0.95200816,108600.0,108590.0,0.08259346]
[1748219264768,0.48627149,108600.0,108590.0,0.08259346]
[1748219264987,0.7678461,108600.0,108590.0,0.09180181]
[1748219265208,0.758638,108600.0,108590.0,0.09180181]
[1748219265399,0.95200816,108600.0,108590.0,0.08259346]
[1748219265815,0.758638,108600.0,108590.0,0.09180181]
[1748219266044,0.7678461,108600.0,108590.0,0.09180181]
[1748219266382,0.758638,108600.0,108590.0,0.09180181]
[1748219266618,0.758638,108600.0,108590.0,0.07024662]
[1748219266922,0.74942999,108600.0,108590.0,0.07024662]
[1748219267235,0.14912,108600.0,108590.0,0.07024662]
[1748219267456,0.15141792,108600.0,108590.0,0.07024662]
[1748219267835,0.16062534,108600.0,108590.0,0.07024662]
[1748219268249,0.17904094,108600.0,108590.0,0.07024662]
[1748219268449,0.16983301,108600.0,108590.0,0.07024662]
[1748219268774,0.03192085,108600.0,108590.0,0.07024662]
[1748219269176,0.01350534,108600.0,108590.0,0.07024662]
[1748219269308,0.01841721,108590.0,108580.0,0.06725854]
[1748219269513,0.50305363,108590.0,108580.0,0.01215001]
[1748219269728,0.70565029,108590.0,108580.0,0.03977863]
[1748219269925,0.6685911,108590.0,108580.0,0.03977863]
[1748219270333,0.85277012,108590.0,108580.0,0.03977863]
[1748219270531,0.67779996,108590.0,108580.0,0.03977863]
[1748219270748,0.62206502,108590.0,108580.0,0.10424662]
[1748219271216,0.48415363,108590.0,108580.0,0.10424662]
[1748219271522,0.49336241,108590.0,108580.0,0.10424662]
[1748219271933,0.48415363,108590.0,108580.0,0.10524662]
[1748219272141,0.47594502,108590.0,108580.0,0.10524662]
[1748219272515,0.48515363,108590.0,108580.0,0.10524662]
[1748219272717,0.5398711,108590.0,108580.0,0.10524662]
[1748219272925,0.50365363,108590.0,108580.0,0.10524662]
[1748219273343,0.88317758,108590.0,108580.0,0.00579442]
[1748219273566,0.88317801,108590.0,108580.0,0.00579442]
[1748219274396,0.20269598,108580.0,108570.0,0.04255418]
[1748219274625,0.31066019,108580.0,108570.0,0.04270445]
[1748219274844,0.31986948,108580.0,108570.0,0.04270445]
[1748219275087,0.4904863,108590.0,108580.0,0.05525835]
[1748219275295,0.16553662,108590.0,108580.0,0.06446755]
[1748219275495,0.03913167,108590.0,108580.0,0.06446755]
[1748219275703,0.03913167,108590.0,108580.0,0.07298142]
[1748219275873,0.82522556,108610.0,108600.0,0.06445568]
[1748219276075,1.71168671,108610.0,108600.0,0.06445577]
[1748219276277,1.72778923,108610.0,108600.0,0.06445577]
[1748219276424,0.19870291,108600.0,108590.0,0.0368358]
[1748219276649,1.13567978,108610.0,108600.0,0.04604051]
[1748219277040,1.74230286,108610.0,108600.0,0.06376239]
[1748219277257,1.74230286,108610.0,108600.0,0.05455438]
[1748219277466,1.27956619,108610.0,108600.0,0.05455438]
[1748219277675,1.67184434,108610.0,108600.0,0.06376231]
[1748219277881,0.02774899,108610.0,108600.0,0.08217757]
[1748219278084,0.03925357,108610.0,108600.0,0.08217757]
[1748219278291,0.06166748,108610.0,108600.0,0.08217757]
[1748219278507,0.25501983,108610.0,108600.0,0.06376231]
[1748219278714,0.85073132,108610.0,108600.0,0.00851387]
[1748219279547,0.99785132,108610.0,108600.0,0.00851387]
[1748219280162,0.97441084,108610.0,108600.0,0.00851387]
[1748219280281,0.01841552,108600.0,108590.0,0.08287876]
[1748219280491,0.21408351,108600.0,108590.0,0.07367049]
[1748219280716,0.2290861,108600.0,108590.0,0.04604466]
[1748219280964,0.2290861,108600.0,108590.0,0.05525335]
[1748219281174,0.2290861,108600.0,108590.0,0.04604466]
[1748219281373,0.2118045,108590.0,108580.0,0.05525818]
[1748219281492,0.50257093,108590.0,108580.0,0.06446746]
[1748219281709,0.20261497,108580.0,108570.0,0.0001501]
[1748219281919,0.68131491,108590.0,108580.0,0.01841916]
[1748219282149,0.96424784,108590.0,108580.0,0.05525835]
[1748219282499,0.95503949,108590.0,108580.0,0.04604898]
[1748219282705,0.95503949,108590.0,108580.0,0.05525869]
[1748219282915,0.97469369,108590.0,108580.0,0.04604898]
[1748219283118,0.9383763,108590.0,108570.0,0.0554127]
[1748219283293,0.01150695,108580.0,108570.0,0.0554127]
[1748219283506,0.00229792,108580.0,108570.0,0.0554127]
[1748219283709,0.63551087,108590.0,108580.0,0.06446755]
[1748219283910,0.63603045,108590.0,108580.0,0.06446755]
[1748219284087,0.6422388,108590.0,108580.0,0.06446755]
[1748219284296,0.6606561,108590.0,108580.0,0.06446755]
[1748219284499,0.65644732,108590.0,108580.0,0.06446755]
[1748219285080,0.5185361,108590.0,108580.0,0.06446755]
[1748219285367,0.21182434,108580.0,108570.0,0.04620325]
[1748219285574,0.0092092,108580.0,108570.0,0.07383407]
[1748219285784,0.02071649,108580.0,108570.0,0.07383407]